bitfinex-derivatives/quotes_SOLF0:USTF0_20250819
["timestamp","ask_amount","ask_price","bid_price","bid_amount"]
[1755563287545,3.89494557,182.39,182.3,5.38669736]
[1755563287747,3.89494557,182.38,182.3,5.38669736]
[1755563287946,3.89494557,182.37,182.33,5.34549258]
[1755563288154,3.18,182.4,182.34,3.05]
[1755563288454,3.89576206,182.39,182.35,3.05]
[1755563288648,3.18,182.4,182.35,3.08714114]
[1755563288854,142.42,182.43,182.35,0.03714114]
[1755563288855,7.07577084,182.39,182.35,0.03714114]
[1755563289052,3.18,182.39,182.35,0.03714114]
[1755563289757,3.18,182.39,182.35,3.08714114]
[1755563290054,145.6,182.43,182.35,3.08714114]
[1755563290350,3.89647318,182.42,182.35,3.08714114]
[1755563290554,3.89647318,182.41,182.35,3.08714114]
[1755563290753,3.89647318,182.4,182.36,3.05]
[1755563291058,142.42,182.43,182.36,3.05]
[1755563291356,3.89866513,182.42,182.36,3.05]
[1755563291556,371.64,182.46,182.37,3.05]
[1755563291846,3.89846536,182.45,182.37,3.05]
[1755563292052,145.54,182.5,182.37,3.05]
[1755563292254,0.03577351,182.43,182.41,5.4793]
[1755563292551,145.54,182.5,182.42,3.05]
[1755563292747,3.18,182.48,182.37,8.5307]
[1755563293049,3.89882273,182.47,182.37,3.05]
[1755563293647,3.89882273,182.47,182.4,0.03754342]
[1755563294048,3.89882273,182.47,182.4,3.08754342]
[1755563295356,3.18,182.48,182.4,3.08754342]
[1755563295555,3.89438967,182.47,182.4,3.08754342]
[1755563295755,3.18,182.48,182.4,3.08754342]
[1755563295957,3.89404781,182.47,182.4,3.08754342]
[1755563296150,142.36,182.5,182.4,3.08754342]
[1755563296151,142.36,182.5,182.41,5.4795]
[1755563296357,3.89423583,182.49,182.42,3.05]
[1755563296655,3.18,182.52,182.42,3.05]
[1755563296849,3.89251686,182.51,182.44,0.04195204]
[1755563297055,3.89251686,182.5,182.44,0.04195204]
[1755563297252,3.18,182.52,182.44,0.04195204]
[1755563297453,3.89070402,182.51,182.44,0.04195204]
[1755563297657,3.18,182.52,182.44,0.04195204]
[1755563297847,3.89049123,182.51,182.44,0.04195204]
[1755563298047,3.89049123,182.5,182.44,0.04195204]
[1755563298251,3.18,182.52,182.44,0.04195204]
[1755563298554,3.8888103,182.51,182.44,0.04195204]
[1755563298756,3.18,182.52,182.44,0.04195204]
[1755563298958,3.18,182.5,182.44,0.04195204]
[1755563301663,3.88616434,182.49,182.44,0.04195204]
[1755563301849,3.18,182.47,182.44,0.04195204]
[1755563302055,3.18,182.46,182.44,0.04195204]
[1755563302460,3.15,182.5,182.44,0.04195204]
[1755563302862,3.88569884,182.49,182.44,0.04195204]
[1755563303065,3.15,182.47,182.44,0.04195204]
[1755563303255,3.15,182.46,182.44,0.04195204]
[1755563304064,3.15,182.52,182.44,0.04195204]
[1755563304262,3.15,182.5,182.44,0.04195204]
[1755563304463,3.88492804,182.49,182.44,0.04195204]
[1755563304663,3.15,182.45,182.44,0.04195204]
[1755563306666,7.03375156,182.45,182.44,0.04195204]
[1755563307057,7.03375156,182.45,182.34,3.12]
[1755563307058,3.15,182.44,182.34,3.12]
[1755563307254,3.88373987,182.43,182.34,3.12]
[1755563307461,3.15,182.42,182.34,3.12]
[1755563307669,142.14,182.44,182.34,3.12]
[1755563307871,3.88373847,182.43,182.34,3.12]
[1755563308165,3.15,182.43,182.37,0.0356333]
[1755563308370,3.8838658,182.42,182.37,0.0356333]
[1755563308560,3.15,182.43,182.37,0.0356333]
[1755563310767,142.14,182.44,182.38,3.12]
[1755563311266,142.14,182.44,182.38,8.46033149]
[1755563311873,82.89411994,182.5,182.41,8.46033149]
[1755563312163,3.88294792,182.49,182.41,8.46033149]
[1755563312368,225.01411994,182.5,182.41,8.46033149]
[1755563312762,225.01411994,182.5,182.41,13.93993149]
[1755563312963,225.01411994,182.5,182.41,8.46033149]
[1755563315371,3.88169585,182.49,182.41,8.46033149]
[1755563315671,225.01411994,182.5,182.41,8.46033149]
[1755563315877,3.88168954,182.49,182.41,8.46033149]
[1755563316073,0.03488322,182.47,182.41,8.46033149]
[1755563316273,0.03488322,182.47,182.44,0.03458586]
[1755563316576,0.03488322,182.47,182.44,3.15458586]
[1755563317076,0.03488322,182.47,182.44,5.37491735]
[1755563317277,0.03488322,182.47,182.46,3.12]
[1755563318278,3.18488322,182.47,182.44,0.03458586]
[1755563319966,0.03488322,182.47,182.44,0.03458586]
[1755563321282,0.03488322,182.47,182.44,3.15458586]
[1755563322079,0.03488322,182.47,182.44,0.03458586]
[1755563323580,3.18488322,182.47,182.44,0.03458586]
[1755563324588,3.15,182.45,182.44,0.03458586]
[1755563324991,7.03319512,182.45,182.35,5.34033149]
[1755563325177,0.03488322,182.47,182.32,368.32]
[1755563325178,3.15,182.43,182.33,3.12]
[1755563326082,0.0382563,182.4,182.33,3.12]
[1755563328186,3.15,182.39,182.29,8.46033149]
[1755563328488,3.15,182.37,182.29,8.46033149]
[1755563328886,0.0349116,182.36,182.29,8.46033149]
[1755563330486,0.0349116,182.36,182.29,3.12]
[1755563332004,3.88893826,182.35,182.27,5.34033149]
[1755563332196,0.0349116,182.36,182.27,5.34033149]
[1755563332497,3.88923992,182.35,182.27,5.34033149]
[1755563332801,0.0349116,182.36,182.27,5.34033149]
[1755563332995,3.88945392,182.35,182.27,5.34033149]
[1755563333197,3.0,182.35,182.25,3.12]
[1755563333396,3.88812865,182.34,182.25,3.12]
[1755563333598,3.0,182.35,182.25,3.12]
[1755563333903,0.03557931,182.31,182.25,3.12]
[1755563334498,0.03557931,182.31,182.19,2.87]
[1755563334800,3.0,182.29,182.26,0.04049988]
[1755563334998,3.0,182.27,182.26,0.04049988]
[1755563335198,3.03900205,182.27,182.26,0.04049988]
[1755563336696,3.03900205,182.27,182.19,2.87]
[1755563336697,3.57900205,182.27,182.15,8.21033149]
[1755563336893,3.0,182.25,182.15,8.21033149]
[1755563337898,0.03690881,182.22,182.15,8.21033149]
[1755563338304,3.03690881,182.22,182.15,2.87]
[1755563339103,3.03690881,182.22,182.12,5.34033149]
[1755563339305,3.03690881,182.22,182.13,2.87]
[1755563339805,3.0,182.22,182.13,2.87]
[1755563340207,0.04196854,182.19,182.13,2.87]
[1755563341503,0.04196854,182.19,182.14,5.4875]
[1755563341705,0.04196854,182.19,182.16,2.87]
[1755563342604,0.04196854,182.19,182.17,2.87]
[1755563344099,0.04196854,182.19,182.14,2.87]
[1755563344303,0.04196854,182.19,182.15,2.87]
[1755563344498,0.04196854,182.19,182.1,8.66395092]
[1755563344703,0.04196854,182.19,182.12,2.87]
[1755563346909,0.04196854,182.19,182.13,2.87]
[1755563348913,3.04196854,182.19,182.13,2.87]
[1755563349112,3.04196854,182.19,182.1,11.53395092]
[1755563349709,3.04196854,182.19,182.13,0.03542195]
[1755563364524,3.04196854,182.19,182.02,368.54]
[1755563364525,3.04196854,182.19,181.92,3.0]
[1755563364725,5.35450582,182.14,181.99,5.35450582]
[1755563364932,3.84094975,182.13,181.98,5.35450582]
[1755563365128,3.06,182.11,181.99,3.0]
[1755563365330,3.06,182.07,181.91,3.0]
[1755563365533,3.84075211,182.06,181.91,3.0]
[1755563365731,6.90075211,182.05,181.91,3.0]
[1755563366032,0.03648127,182.01,181.91,3.0]
[1755563366220,0.03648127,182.01,181.97,3.0]
[1755563366421,0.03648127,182.01,181.96,0.04103674]
[1755563366628,0.03648127,182.01,182.0,3.0]
[1755563367433,141.72,182.12,182.01,3.0]
[1755563367930,3.84447708,182.11,182.01,3.0]
[1755563368136,141.72,182.12,182.01,3.0]
[1755563368629,0.03776691,182.08,182.01,3.0]
[1755563370932,0.03776691,182.08,181.94,3.0]
[1755563371231,3.06,182.09,181.97,3.0]
[1755563371634,0.03719819,182.03,181.97,3.0]
[1755563371935,0.03719819,182.03,181.98,3.0]
[1755563372336,0.03719819,182.03,182.0,5.35450582]
[1755563372628,0.03719819,182.03,182.02,3.0]
[1755563372832,141.72,182.12,182.04,3.0]
[1755563373035,3.83413278,182.11,182.04,3.0]
[1755563373228,141.72,182.12,182.04,3.0]
[1755563373430,3.83663574,182.11,182.04,3.0]
[1755563373631,141.72,182.12,182.04,3.0]
[1755563373833,368.9,182.16,182.07,3.0]
[1755563374035,0.04201667,182.1,182.08,3.0]
[1755563374335,3.06,182.18,182.09,8.35450582]
[1755563374541,3.83977767,182.17,182.09,8.35450582]
[1755563374733,0.04013679,182.11,182.1,3.0]
[1755563374931,3.06,182.18,182.1,3.0]
[1755563375132,3.84009642,182.17,182.1,3.0]
[1755563375340,0.04128092,182.12,182.1,3.0]
[1755563375743,3.06,182.18,182.1,3.0]
[1755563376038,0.0352934,182.13,182.09,3.0]
[1755563376240,0.0352934,182.13,182.12,3.0]
[1755563376641,141.68,182.19,182.12,3.0]
[1755563376944,0.04057887,182.14,182.12,3.0]
[1755563377142,0.04057887,182.14,182.13,3.0]
[1755563378241,0.04057887,182.14,181.94,10.9867]
[1755563378445,0.04057887,182.14,182.04,3.0]
[1755563378644,3.85250983,182.13,182.04,3.0]
[1755563378947,0.03685961,182.11,182.04,3.0]
[1755563379145,3.85215988,182.1,182.04,3.0]
[1755563379347,0.03685961,182.11,182.04,3.0]
[1755563379535,3.85476919,182.1,182.04,3.0]
[1755563379741,3.85476919,182.09,181.99,8.66615604]
[1755563379946,0.03685961,182.11,181.99,8.66615604]
[1755563380140,3.85475893,182.1,182.0,3.0]
[1755563380339,0.03746656,182.07,182.0,3.0]
[1755563385649,0.03746656,182.07,181.98,3.0]
[1755563386150,3.06,182.09,181.98,3.0]
[1755563386343,0.03605048,182.04,181.98,3.0]
[1755563388150,0.03605048,182.04,181.98,8.4923]
[1755563388347,0.03605048,182.04,181.96,8.66615604]
[1755563388552,0.03605048,182.04,181.99,5.492]
[1755563388849,0.03605048,182.04,182.03,3.0]
[1755563389046,0.03605048,182.04,181.92,8.66615604]
[1755563389250,0.03605048,182.04,181.93,3.0]
[1755563389446,3.06,182.07,181.96,8.66615604]
[1755563389639,0.03649604,182.0,181.99,3.0]
[1755563389842,3.06,182.07,181.99,3.0]
[1755563390440,3.06,182.07,181.96,11.66615604]
[1755563390746,3.06,182.07,181.98,3.0]
[1755563391649,3.06,182.07,181.98,8.4923]
[1755563391956,3.06,182.07,181.98,3.0]
[1755563393650,3.06,182.07,181.88,142.49637238]
[1755563393651,3.06,182.07,181.94,3.13]
[1755563393848,2.97,182.05,181.94,3.13]
[1755563396056,2.97,182.05,181.9,3.13]
[1755563396458,2.97,182.05,181.91,5.4943]
[1755563396657,3.85638497,182.04,181.91,5.4943]
[1755563396858,2.97,182.03,181.91,5.4943]
[1755563397060,2.97,182.03,181.9,3.13]
[1755563398360,2.97,182.03,181.91,5.36388093]
[1755563400353,2.97,182.01,181.88,5.36388093]
[1755563400555,2.97,181.99,181.89,3.13]
[1755563400764,2.97,181.99,181.92,3.13]
[1755563400965,2.97,181.99,181.88,5.36388093]
[1755563401160,2.97,181.99,181.89,3.13]
[1755563403764,2.97,182.05,181.94,3.13]
[1755563404565,141.48,182.12,181.97,3.13]
[1755563404770,6.81804023,182.11,182.0,3.13]
[1755563405066,2.97,182.11,182.0,8.49388093]
[1755563405258,2.97,182.11,181.86,16.35578093]
[1755563405259,2.97,182.11,182.04,3.13]
[1755563405459,2.97,182.17,182.09,5.36388093]
[1755563405675,3.84963914,182.16,182.04,5.36388093]
[1755563405968,6.81963914,182.15,182.02,3.13]
[1755563406170,3.84963914,182.14,182.04,5.36388093]
[1755563406468,3.85089739,182.13,182.02,3.13]
[1755563406669,2.97,182.15,182.02,3.13]
[1755563407068,2.97,182.13,182.02,3.13]
[1755563407665,3.85177968,182.12,182.02,3.13]
[1755563407866,6.82177968,182.11,182.02,3.13]
[1755563408164,2.97,182.11,182.02,3.13]
[1755563408466,2.97,182.15,182.02,3.13]
[1755563409060,2.97,182.19,182.06,3.13]
[1755563409363,2.97,182.25,182.1,3.13]
[1755563409570,3.85678021,182.24,182.14,3.13]
[1755563409860,84.45590966,182.31,182.18,3.13]
[1755563410060,84.45590966,182.31,182.21,11.80182005]
[1755563410263,84.45590966,182.31,182.23,0.04038046]
[1755563410467,0.04002958,182.28,182.24,3.13]
[1755563410862,0.04002958,182.28,182.23,0.04038046]
[1755563411072,0.04002958,182.28,182.26,3.13]
[1755563411367,0.04002958,182.28,182.23,0.04038046]
[1755563411574,0.04002958,182.28,182.24,3.13]
[1755563411871,3.01002958,182.28,182.23,0.04038046]
[1755563412062,0.04002958,182.28,182.26,3.13]
[1755563412363,2.97,182.39,182.27,3.13]
[1755563413360,3.83461374,182.38,182.23,3.13]
[1755563413563,2.97,182.36,182.31,0.03665853]
[1755563414076,2.97,182.36,182.23,3.13]
[1755563414365,2.97,182.36,182.19,3.13]
[1755563414573,2.97,182.34,182.19,3.13]
[1755563415566,3.82758497,182.33,182.19,3.13]
[1755563415774,2.97,182.34,182.19,3.13]
[1755563416073,2.97,182.32,182.19,3.13]
[1755563417576,2.97,182.32,182.19,8.6156]
[1755563417880,2.97,182.32,182.2,3.13]
[1755563418068,2.97,182.32,182.24,0.03578826]
[1755563421267,3.81878687,182.31,182.24,0.03578826]
[1755563421575,2.97,182.3,182.24,0.03578826]
[1755563422667,8.67182005,182.36,182.24,0.03578826]
[1755563422967,3.12,182.35,182.24,0.03578826]
[1755563423168,3.12,182.35,182.22,3.11]
[1755563425278,3.12,182.35,182.18,3.11]
[1755563425680,3.12,182.33,182.18,3.11]
[1755563426380,3.12,182.33,182.19,3.11]
[1755563428383,16.45,182.35,182.19,3.11]
[1755563428384,3.12,182.31,182.19,3.11]
[1755563429382,3.12,182.31,182.15,3.11]
[1755563429679,3.12,182.29,182.23,0.03914353]
[1755563431076,0.03833932,182.28,182.23,0.03914353]
[1755563431378,0.03833932,182.28,182.23,3.14914353]
[1755563432784,0.03833932,182.28,182.23,0.03914353]
[1755563432985,0.03833932,182.28,182.23,3.14914353]
[1755563433189,3.15833932,182.28,182.23,0.03914353]
[1755563433578,0.03833932,182.28,182.23,0.03914353]
[1755563433981,3.12,182.25,182.23,0.03914353]
[1755563434476,0.03833932,182.28,182.23,0.03914353]
[1755563434683,0.03833932,182.28,182.23,3.14914353]
[1755563434881,0.03833932,182.28,182.24,3.11]
[1755563435584,0.03833932,182.28,182.25,3.11]
[1755563435788,0.03833932,182.28,182.24,3.11]
[1755563436789,0.03833932,182.28,182.25,3.11]
[1755563436992,0.03833932,182.28,182.23,0.03914353]
[1755563437185,3.15833932,182.28,182.23,0.03914353]
[1755563437384,3.12,182.27,182.23,0.03914353]
[1755563437687,0.03833932,182.28,182.23,0.03914353]
[1755563437882,3.12,182.26,182.23,0.03914353]
[1755563439178,3.12,182.25,182.23,0.03914353]
[1755563441782,3.12,182.27,182.23,0.03914353]
[1755563442186,3.12,182.26,182.23,0.03914353]
[1755563442484,0.03833932,182.28,182.23,0.03914353]
[1755563442485,3.12,182.25,182.23,0.03914353]
[1755563442993,3.12,182.26,182.23,0.03914353]
[1755563443186,3.12,182.24,182.23,0.03914353]
[1755563444988,3.12,182.24,182.06,3.11]
[1755563444989,3.12,182.23,182.06,3.11]
[1755563445190,3.85728633,182.22,182.06,3.11]
[1755563445492,3.12,182.2,182.06,3.11]
[1755563445681,3.85728633,182.19,182.06,3.11]
[1755563445886,3.85728633,182.18,182.06,3.11]
[1755563446088,3.12,182.2,182.06,3.11]
[1755563446289,0.03470315,182.14,182.06,3.11]
[1755563447294,3.12,182.22,182.06,3.11]
[1755563447495,3.12,182.22,181.97,141.1]
[1755563447496,3.86726856,182.21,182.1,3.11]
[1755563447692,3.12,182.22,182.09,8.67182005]
[1755563447999,3.86728666,182.21,182.12,3.11]
[1755563448181,3.12,182.22,182.12,3.11]
[1755563448384,3.87321735,182.21,182.12,3.11]
[1755563448592,3.87321735,182.2,182.12,3.11]
[1755563448784,3.87321735,182.19,182.12,3.11]
[1755563448987,3.87337938,182.18,182.12,3.11]
[1755563449185,3.87324569,182.17,182.12,3.11]
[1755563449384,3.87844204,182.16,182.12,3.11]
[1755563449584,3.87812545,182.15,182.08,3.11]
[1755563449780,3.87812545,182.14,182.08,3.11]
[1755563449985,3.87812545,182.13,182.09,3.11]
[1755563450198,3.12,182.18,182.09,3.11]
[1755563450492,3.88048225,182.17,182.09,3.11]
[1755563450693,3.88048225,182.16,182.09,3.11]
[1755563450997,3.88048225,182.15,182.09,3.11]
[1755563451194,3.12,182.18,182.09,3.11]
[1755563451394,3.87985029,182.17,182.09,3.11]
[1755563451695,3.87985029,182.16,182.09,3.11]
[1755563451896,3.87985029,182.15,182.09,3.11]
[1755563452193,3.12,182.18,182.02,3.11]
[1755563452194,3.87985029,182.14,182.02,3.11]
[1755563452396,3.87985029,182.13,182.04,8.67182005]
[1755563452696,3.12,182.19,182.05,2.98]
[1755563452896,3.88191617,182.18,182.09,2.98]
[1755563453097,147.12135762,182.22,182.05,2.98]
[1755563453098,2.89,182.16,182.05,2.98]
[1755563453287,141.1,182.22,182.05,2.98]
[1755563453288,2.89,182.14,182.05,2.98]
[1755563453488,3.88191617,182.13,182.05,2.98]
[1755563453688,3.88191617,182.12,182.05,2.98]
[1755563453994,3.88191617,182.11,182.05,2.98]
[1755563454194,2.89,182.14,182.05,2.98]
[1755563454383,3.88142525,182.13,182.05,2.98]
[1755563454586,3.88142525,182.12,182.05,2.98]
[1755563454788,3.88142525,182.11,182.05,2.98]
[1755563454989,2.89,182.14,182.05,2.98]
[1755563455288,3.87980992,182.13,182.05,2.98]
[1755563455489,3.87980992,182.12,182.05,2.98]
[1755563455792,2.89,182.14,182.05,2.98]
[1755563455992,3.87832141,182.13,182.05,2.98]
[1755563456198,3.87832141,182.12,182.05,2.98]
[1755563456397,2.89,182.18,182.05,2.98]
[1755563456697,3.8793612,182.17,182.05,2.98]
[1755563456899,3.8793612,182.16,182.05,2.98]
[1755563457193,3.8793612,182.15,182.06,2.98]
[1755563457388,2.89,182.18,182.06,2.98]
[1755563457590,3.87970476,182.17,182.06,2.98]
[1755563457783,3.87970476,182.16,182.06,2.98]
[1755563457987,3.87970476,182.15,182.06,2.98]
[1755563458190,3.8797099,182.14,182.06,2.98]
[1755563458389,2.89,182.18,182.06,2.98]
[1755563458589,2.89,182.16,182.06,2.98]
[1755563458794,2.89,182.14,182.03,2.98]
[1755563458999,3.88045371,182.13,182.03,2.98]
[1755563459200,3.88045371,182.12,182.03,2.98]
[1755563459400,3.88045371,182.11,182.03,2.98]
[1755563459602,2.89,182.14,182.03,2.98]
[1755563459897,6.02135762,182.18,181.99,2.98]
[1755563459898,2.89,182.12,181.99,2.98]
[1755563460100,2.89,182.1,181.99,2.98]
[1755563460402,2.89,182.14,181.99,11.65182005]
[1755563460699,2.89,182.12,182.0,2.98]
[1755563460997,2.89,182.1,182.0,2.98]
[1755563461200,3.89838624,182.09,182.0,2.98]
[1755563461397,2.89,182.1,182.0,2.98]
[1755563461398,3.89838624,182.08,182.0,2.98]
[1755563461591,2.89,182.1,182.0,2.98]
[1755563461795,2.89,182.1,181.95,2.98]
[1755563462101,2.89,182.08,181.91,2.98]
[1755563462294,3.89553953,182.07,181.91,2.98]
[1755563462489,3.89553953,182.06,181.91,2.98]
[1755563462704,2.89,182.04,181.91,2.98]
[1755563463004,2.89,182.04,181.93,2.98]
[1755563463297,2.89,182.02,181.89,2.98]
[1755563463505,2.89,182.0,181.89,2.98]
[1755563463696,2.89,181.98,181.85,2.98]
[1755563464003,0.04085682,181.97,181.85,2.98]
[1755563464206,122.41988256,182.04,181.93,0.04004792]
[1755563464207,2.89,181.96,181.93,0.04004792]
[1755563464599,2.89,182.0,181.88,2.98]
[1755563464900,6.77247826,181.99,181.85,8.4759]
[1755563465096,2.89,181.99,181.86,2.98]
[1755563465604,122.41988256,182.04,181.9,2.98]
[1755563465605,2.89,182.03,181.9,2.98]
[1755563465896,122.41988256,182.04,181.93,2.98]
[1755563467200,122.41988256,182.04,181.93,8.4737]
[1755563467398,125.30988256,182.04,181.93,2.98]
[1755563468707,2.89,182.12,181.97,5.4924]
[1755563468895,3.87545381,182.11,181.98,2.98]
[1755563469101,6.76513759,182.1,181.98,2.98]
[1755563469299,2.89,182.1,181.98,2.98]
[1755563470400,2.89,182.1,181.99,2.98]
[1755563470910,141.16,182.13,181.99,2.98]
[1755563471301,141.16,182.13,182.01,5.4914]
[1755563471603,0.03939574,182.08,182.04,0.04186076]
[1755563471806,369.12,182.17,182.07,2.98]
[1755563472506,2.89,182.22,182.09,2.98]
[1755563472808,3.8796049,182.21,182.09,2.98]
[1755563472995,2.89,182.19,182.02,8.67182005]
[1755563473197,2.89,182.17,182.14,0.04041054]
[1755563473406,141.14,182.22,182.05,2.98]
[1755563473605,2.89,182.15,182.05,2.98]
[1755563473805,2.89,182.15,182.14,0.04173268]
[1755563474305,2.89,182.15,182.05,2.98]
[1755563474608,2.89,182.14,182.13,0.04169073]
[1755563474808,2.89,182.14,182.05,2.98]
[1755563475006,2.89,182.14,182.0,5.4914]
[1755563475007,2.89,182.14,182.0,2.98]
[1755563475207,3.88160471,182.13,182.0,2.98]
[1755563475405,2.89,182.18,182.04,2.98]
[1755563475612,2.89,182.18,182.06,8.67182005]
[1755563475815,2.89,182.18,182.07,2.98]
[1755563477400,3.88459154,182.17,182.07,2.98]
[1755563477606,3.88459154,182.16,182.07,2.98]
[1755563477806,2.89,182.18,182.07,2.98]
[1755563478110,3.88459065,182.17,182.07,2.98]
[1755563478409,3.88459065,182.16,182.07,2.98]
[1755563478611,6.77459065,182.15,182.03,2.98]
[1755563478810,3.88459065,182.14,182.03,2.98]
[1755563479213,2.89,182.13,182.03,2.98]
[1755563479610,2.89,182.11,181.96,2.98]
[1755563479802,3.88644209,182.1,181.96,2.98]
[1755563480008,3.88644209,182.09,181.96,2.98]
[1755563480307,2.89,182.11,181.96,2.98]
[1755563480499,3.8867257,182.1,181.96,2.98]
[1755563480702,3.8867257,182.09,181.96,2.98]
[1755563480906,3.8867257,182.08,181.96,2.98]
[1755563481105,2.89,182.11,181.96,2.98]
[1755563481312,3.88676713,182.1,181.96,2.98]
[1755563481509,3.88676713,182.09,181.96,2.98]
[1755563481815,3.88676713,182.08,181.96,2.98]
[1755563482008,2.89,182.11,181.96,2.98]
[1755563482306,3.88833472,182.1,181.96,2.98]
[1755563482514,6.92833472,182.09,181.96,2.98]
[1755563482712,3.88833472,182.08,181.96,2.98]
[1755563484518,3.88833472,182.08,181.98,3.08]
[1755563485912,3.04,182.07,181.94,3.08]
[1755563486113,3.88833472,182.06,181.94,3.08]
[1755563487119,3.04,182.11,181.94,3.08]
[1755563487319,3.8952567,182.1,181.94,3.08]
[1755563487522,3.8952567,182.09,181.95,3.08]
[1755563487718,3.8952567,182.08,181.96,5.4926]
[1755563487916,3.04,182.11,181.97,3.08]
[1755563487917,3.8952567,182.07,181.97,3.08]
[1755563488119,3.89679984,182.06,181.93,3.08]
[1755563488319,6.93679984,182.05,181.93,3.08]
[1755563488524,3.89679984,182.04,181.93,3.08]
[1755563488912,3.04,182.03,181.93,3.08]
[1755563489225,3.89679984,182.02,181.93,3.08]
[1755563489821,3.04,182.01,181.88,3.08]
[1755563490013,3.89679984,182.0,181.88,3.08]
[1755563490324,3.04,181.99,181.88,3.08]
[1755563490520,3.04,181.97,181.84,3.08]
[1755563490718,3.04,181.95,181.81,4.03667473]
[1755563490913,3.04,181.93,181.81,3.08]
[1755563491118,3.89679984,181.92,181.81,3.08]
[1755563491322,6.93679984,181.91,181.81,3.08]
[1755563491523,3.89679984,181.9,181.81,3.08]
[1755563492139,3.04,181.89,181.77,3.08]
[1755563492331,3.04,181.87,181.61,3.08]
[1755563492533,373.05679984,181.88,181.64,3.08]
[1755563492534,3.04,181.84,181.64,3.08]
[1755563492831,3.04,181.82,181.64,3.08]
[1755563493033,3.04,181.8,181.64,3.08]
[1755563493328,3.04,181.78,181.64,3.08]
[1755563493630,3.04,181.78,181.66,3.08]
[1755563494137,3.04,181.78,181.65,3.08]
[1755563494338,3.04,181.84,181.65,3.08]
[1755563494542,3.99772787,181.82,181.65,3.08]
[1755563494932,3.88705658,181.81,181.65,3.08]
[1755563495127,369.16,181.88,181.65,3.08]
[1755563495432,6.92542889,181.87,181.68,17.34234633]
[1755563495633,369.16,181.88,181.76,5.4988]
[1755563495834,369.16,181.88,181.77,3.08]
[1755563496132,3.04,181.91,181.77,3.08]
[1755563497135,3.04,181.96,181.77,17.34234633]
[1755563497337,3.8857563,181.95,181.83,3.08]
[1755563497539,3.04,181.96,181.83,3.08]
[1755563497939,370.27692464,181.99,181.69,84.34256201]
[1755563497940,3.04,181.98,181.69,84.34256201]
[1755563498240,3.04,181.96,181.88,0.04150466]
[1755563498540,3.04,181.96,181.69,84.34256201]
[1755563498541,0.03920529,181.85,181.74,3.08]
[1755563498833,3.04,181.86,181.74,3.08]
[1755563499040,3.04,181.86,181.69,87.42256201]
[1755563499237,3.04,181.84,181.69,87.42256201]
[1755563499438,3.04,181.82,181.64,3.08]
[1755563499639,3.88076396,181.81,181.64,3.08]
[1755563499839,3.04,181.82,181.64,3.08]
[1755563500144,3.88020365,181.81,181.64,3.08]
[1755563500341,6.92020365,181.8,181.64,3.08]
[1755563500547,517.42,181.86,181.64,3.08]
[1755563500548,3.04,181.78,181.64,3.08]
[1755563500747,3.87612093,181.77,181.64,3.08]
[1755563500934,3.04,181.76,181.64,3.08]
[1755563501136,3.04,181.74,181.35,16.46]
[1755563501435,3.04,181.72,181.5,3.08]
[1755563501637,3.04,181.7,181.52,3.08]
[1755563501937,3.04,181.68,181.52,3.08]
[1755563502536,3.04,181.68,181.46,14.26234633]